fUST/lending_fUST_20251012
["ID","MTS","AMOUNT","RATE_DAILY","PERIOD"]
[390999621,1760278054601,500.0,0.00030205,60]
[390999622,1760278054863,500.0,0.00030205,60]
[390999623,1760278056696,500.0,0.00030205,60]
[390999624,1760278056930,500.0,0.00030205,60]
[390999625,1760278057304,500.0,0.00030205,60]
[390999626,1760278057380,500.0,0.00030205,60]
[390999627,1760278057611,500.0,0.00030205,60]
[390999629,1760278057846,500.0,0.00030205,60]
[390999630,1760278058088,500.0,0.00030205,60]
[390999632,1760278058405,500.0,0.00030205,60]
[390999633,1760278058647,500.0,0.00030205,60]
[390999634,1760278058877,500.0,0.00030205,60]
[390999635,1760278059106,500.0,0.00030205,60]
[390999636,1760278059387,540.65,0.00030205,60]
[390999639,1760278062975,5000.0,0.00021,2]
[390999640,1760278070218,500.0,0.00030205,60]
[390999641,1760278070445,500.0,0.00030205,60]
[390999642,1760278070704,500.0,0.00030205,60]
[390999643,1760278070937,500.0,0.00030205,60]
[390999644,1760278070980,500.0,0.00030205,60]
[390999645,1760278071166,500.0,0.00030205,60]
[390999646,1760278071211,500.0,0.00030205,60]
[390999647,1760278071418,500.0,0.00030205,60]
[390999648,1760278071465,500.0,0.00030205,60]
[390999649,1760278071689,500.0,0.00030205,60]
[390999650,1760278071732,500.0,0.00030205,60]
[390999651,1760278071921,458.22241905,0.00030205,60]
[390999652,1760278071965,500.0,0.00030205,60]
[390999653,1760278072234,500.0,0.00030205,60]
[390999654,1760278072497,500.0,0.00030205,60]
[390999655,1760278073153,500.0,0.00030205,60]
[390999656,1760278073397,500.0,0.00030205,60]
[390999657,1760278073713,500.0,0.00030205,60]
[390999658,1760278073950,500.0,0.00030205,60]
[390999659,1760278074215,433.51224055,0.00030205,60]
[390999660,1760278075881,500.0,0.00030205,60]
[390999661,1760278076121,500.0,0.00030205,60]
[390999662,1760278076344,500.0,0.00030205,60]
[390999664,1760278078242,500.0,0.00030205,60]
[390999665,1760278078508,500.0,0.00030205,60]
[390999666,1760278078772,500.0,0.00030205,60]
[390999667,1760278079288,172.8326577,0.0002098,2]
[390999669,1760278080515,153.5,0.00015205,2]
[390999670,1760278080840,153.5,0.00015205,2]
[390999671,1760278080932,500.0,0.00030205,60]
[390999672,1760278081100,153.49,0.00015205,2]
[390999673,1760278081169,500.0,0.00030205,60]
[390999674,1760278081738,500.0,0.00030205,60]
[390999675,1760278081974,500.0,0.00030205,60]
[390999676,1760278082376,202.57028067,0.00030205,60]
[390999678,1760278083014,300.0,0.00020999,2]
[390999679,1760278086321,5000.0,0.00021,2]
[390999680,1760278094386,500.0,0.00030205,60]
[390999681,1760278094667,500.0,0.00030205,60]
[390999682,1760278094874,500.0,0.00030205,60]
[390999683,1760278095264,500.0,0.00030205,60]
[390999684,1760278099891,500.0,0.00030205,60]
[390999685,1760278100151,500.0,0.00030205,60]
[390999686,1760278100388,500.0,0.00030205,60]
[390999687,1760278100429,167.3,0.00030205,60]
[390999688,1760278100649,500.0,0.00030205,60]
[390999689,1760278100743,361.55123508,0.00020999,2]
[390999690,1760278100896,500.0,0.00030205,60]
[390999691,1760278102555,271.2,0.00030205,60]
[390999692,1760278108842,5000.0,0.00021,2]
[390999693,1760278115095,500.0,0.00030215,60]
[390999694,1760278115387,633.15322932,0.00030215,60]
[390999695,1760278116370,500.0,0.00030215,60]
[390999696,1760278116622,500.0,0.00030215,60]
[390999697,1760278116885,500.0,0.00030215,60]
[390999698,1760278117116,500.0,0.00030215,60]
[390999699,1760278117375,500.0,0.00030215,60]
[390999700,1760278117640,500.0,0.00030215,60]
[390999701,1760278117866,500.0,0.00030215,60]
[390999702,1760278118134,500.0,0.00030215,60]
[390999703,1760278118369,500.0,0.00030215,60]
[390999704,1760278119425,500.0,0.00030215,60]
[390999705,1760278119803,500.0,0.00030215,60]
[390999706,1760278119931,500.0,0.00030215,60]
[390999707,1760278121206,500.0,0.00030215,60]
[390999708,1760278121436,500.0,0.00030215,60]
[390999709,1760278121682,500.0,0.00030215,60]
[390999710,1760278121737,500.0,0.00030215,60]
[390999711,1760278121950,500.0,0.00030215,60]
[390999712,1760278121995,500.0,0.00030215,60]
[390999713,1760278122181,500.0,0.00030215,60]
[390999714,1760278122228,643.95637811,0.00030215,60]
[390999715,1760278122415,500.0,0.00030215,60]
[390999716,1760278122657,500.0,0.00030215,60]
[390999717,1760278122880,500.0,0.00030215,60]
[390999718,1760278123109,500.0,0.00030215,60]
[390999719,1760278123342,500.0,0.00030215,60]
[390999720,1760278123635,500.0,0.00030215,60]
[390999721,1760278123867,500.0,0.00030215,60]
[390999722,1760278124136,500.0,0.00030215,60]
[390999723,1760278124200,500.0,0.00030215,60]
[390999724,1760278124372,500.0,0.00030215,60]
[390999725,1760278124626,500.0,0.00030215,60]
[390999726,1760278124864,500.0,0.00030215,60]
[390999727,1760278125200,500.0,0.00030215,60]
[390999728,1760278125244,500.0,0.00030215,60]
[390999729,1760278125382,416.1,0.00030215,60]
[390999730,1760278125520,2212.4771,0.00030215,60]
[390999732,1760278128985,254.18925065,0.00030215,60]
[390999734,1760278131566,4638.45876492,0.00021,2]
[390999735,1760278131590,361.54123508,0.00021,2]
[390999736,1760278141447,500.0,0.00030215,60]
[390999737,1760278141840,500.0,0.00030215,60]
[390999738,1760278142059,500.0,0.00030215,60]
[390999739,1760278142504,300.0,0.00020999,2]
[390999740,1760278142615,500.0,0.00030215,60]
[390999741,1760278142881,500.0,0.00030215,60]
[390999742,1760278143141,500.0,0.00030215,60]
[390999743,1760278143397,500.0,0.00030215,60]
[390999744,1760278143629,500.0,0.00030215,60]
[390999745,1760278154557,5000.0,0.00021,2]
[390999746,1760278156421,500.0,0.00030215,60]
[390999747,1760278156652,500.0,0.00030215,60]
[390999748,1760278163457,391.6686,0.00030215,60]
[390999749,1760278177481,5000.0,0.00021,2]
[390999750,1760278180677,500.0,0.00030215,60]
[390999751,1760278181005,500.0,0.00030215,60]
[390999752,1760278181234,500.0,0.00030215,60]
[390999753,1760278181464,500.0,0.00030215,60]
[390999754,1760278181730,408.57058734,0.00030215,60]
[390999755,1760278185766,500.0,0.00030215,60]
[390999756,1760278185988,500.0,0.00030215,60]
[390999757,1760278186299,500.0,0.00030215,60]
[390999758,1760278186456,250.24100783,0.00030215,60]
[390999759,1760278201164,0.01,0.00021,2]
[390999760,1760278201190,4999.99,0.00021,2]
[390999763,1760278202217,500.0,0.00030215,60]
[390999764,1760278202448,500.0,0.00030215,60]
[390999765,1760278202713,268.26725832,0.00030215,60]
[390999766,1760278213143,4002.10627128,0.00030215,60]
[390999767,1760278224154,5000.0,0.00021,2]
[390999844,1760278238038,-109314.48048742,0.00021,2]
[390999845,1760278238153,-310416.48849867,0.00021,2]
[390999846,1760278238162,-5147.80961796,0.00021,2]
[390999847,1760278238171,-166.0,0.00021,2]
[390999848,1760278238181,-165.0,0.00021,2]
[390999849,1760278238190,-165.0,0.00021,2]
[390999850,1760278238198,-165.0,0.00021,2]
[390999851,1760278238207,-263.87638491,0.00021,2]
[390999852,1760278238216,-157.0,0.00021,2]
[390999853,1760278238225,-155.38110599,0.00021,2]
[390999854,1760278238235,-330.0,0.00021,2]
[390999855,1760278238244,-330.0,0.00021,2]
[390999856,1760278238253,-166.10239653,0.00021,2]
[390999857,1760278238262,-1427.0,0.00021001,2]
[390999858,1760278238271,-1427.0,0.00021042,2]
[390999859,1760278238280,-864.0,0.00021067,2]
[390999860,1760278238290,-1427.0,0.00021096,2]
[390999861,1760278238299,-2892.29993448,0.00021226,2]
[390999862,1760278238308,-2030.296672,0.00021279,2]
[390999863,1760278238318,-5000.0,0.0002128,2]
[390999864,1760278238327,-6485.4,0.00021288,10]
[390999865,1760278238336,-502.40649528,0.0002129,2]
[390999866,1760278238345,-500.0,0.0002129,2]
[390999867,1760278238354,-500.0,0.0002129,2]
[390999868,1760278238363,-500.0,0.0002129,2]
[390999869,1760278238371,-500.0,0.0002129,2]
[390999870,1760278238380,-500.0,0.0002129,2]
[390999871,1760278238389,-500.0,0.0002129,2]
[390999872,1760278238399,-500.0,0.0002129,2]
[390999873,1760278238409,-157.46584776,0.0002129,2]
[390999874,1760278238418,-376.17053245,0.0002129,2]
[390999875,1760278238428,-500.0,0.0002129,2]
[390999876,1760278238437,-500.0,0.0002129,2]
[390999877,1760278238446,-500.0,0.0002129,2]
[390999878,1760278238455,-500.0,0.0002129,2]
[390999879,1760278238464,-500.0,0.0002129,2]
[390999880,1760278238473,-500.0,0.0002129,2]
[390999881,1760278238483,-500.0,0.0002129,2]
[390999882,1760278238492,-500.0,0.0002129,2]
[390999883,1760278238502,-500.0,0.0002129,2]
[390999884,1760278238513,-500.0,0.0002129,2]
[390999885,1760278238522,-500.0,0.0002129,2]
[390999886,1760278238531,-355.86721166,0.0002129,2]
[390999887,1760278238541,-500.0,0.0002129,2]
[390999888,1760278238551,-500.0,0.0002129,2]
[390999889,1760278238560,-583.94761976,0.0002129,2]
[390999890,1760278238569,-500.0,0.0002129,2]
[390999891,1760278238579,-500.0,0.0002129,2]
[390999892,1760278238588,-500.0,0.0002129,2]
[390999893,1760278238598,-500.0,0.0002129,2]
[390999894,1760278238608,-500.0,0.0002129,2]
[390999896,1760278238618,-500.0,0.0002129,2]
[390999898,1760278238627,-500.0,0.0002129,2]
[390999900,1760278238637,-260.38437031,0.0002129,2]
[390999902,1760278238649,-500.0,0.0002129,2]
[390999905,1760278238659,-500.0,0.0002129,2]
[390999907,1760278238669,-500.0,0.0002129,2]
[390999909,1760278238679,-500.0,0.0002129,2]
[390999911,1760278238688,-500.0,0.0002129,2]
[390999912,1760278238698,-500.0,0.0002129,2]
[390999915,1760278238708,-500.0,0.0002129,2]
[390999917,1760278238718,-500.0,0.0002129,2]
[390999919,1760278238728,-500.0,0.0002129,2]
[390999921,1760278238737,-500.0,0.0002129,2]
[390999923,1760278238748,-500.0,0.0002129,2]
[390999925,1760278238758,-500.0,0.0002129,2]
[390999927,1760278238770,-500.0,0.0002129,2]
[390999929,1760278238780,-500.0,0.0002129,2]
[390999931,1760278238789,-500.0,0.0002129,2]
[390999933,1760278238798,-500.0,0.0002129,2]
[390999935,1760278238807,-500.0,0.0002129,2]
[390999936,1760278238818,-500.0,0.0002129,2]
[390999938,1760278238828,-500.0,0.0002129,2]
[390999940,1760278238838,-500.0,0.0002129,2]
[390999942,1760278238848,-500.0,0.0002129,2]
[390999944,1760278238858,-500.0,0.0002129,2]
[390999946,1760278238867,-500.0,0.0002129,2]
[390999948,1760278238877,-500.0,0.0002129,2]
[390999950,1760278238886,-500.0,0.0002129,2]
[390999952,1760278238895,-500.0,0.0002129,2]
[390999954,1760278238905,-500.0,0.0002129,2]
[390999956,1760278238914,-500.0,0.0002129,2]
[390999958,1760278238924,-500.0,0.0002129,2]
[390999960,1760278238933,-500.0,0.0002129,2]
[390999962,1760278238943,-200.79380872,0.0002129,2]
[390999964,1760278238952,-500.0,0.0002129,2]
[390999965,1760278238962,-500.0,0.0002129,2]
[390999966,1760278238971,-500.0,0.0002129,2]
[390999967,1760278238980,-500.0,0.0002129,2]
[390999968,1760278238989,-500.0,0.0002129,2]
[390999970,1760278238999,-500.0,0.0002129,2]
[390999971,1760278239009,-500.0,0.0002129,2]
[390999972,1760278239018,-500.0,0.0002129,2]
[390999973,1760278239028,-500.0,0.0002129,2]
[390999974,1760278239037,-500.0,0.0002129,2]
[390999975,1760278239047,-500.0,0.0002129,2]
[390999976,1760278239056,-500.0,0.0002129,2]
[390999977,1760278239065,-9338.97,0.0002129,10]
[390999978,1760278239074,-7782.48,0.0002129,10]
[390999979,1760278239084,-500.0,0.00021293,2]
[390999980,1760278239093,-151.0,0.00021293,2]
[390999981,1760278239103,-151.0,0.00021293,2]
[390999982,1760278239113,-151.0,0.00021293,2]
[390999983,1760278239123,-151.41770202,0.00021293,2]
[390999984,1760278239133,-151.0,0.00021293,2]
[390999985,1760278239143,-151.0,0.00021293,2]
[390999986,1760278239153,-151.0,0.00021294,2]
[390999988,1760278239163,-292.97624977,0.00021294,2]
[390999991,1760278239172,-151.0,0.00021294,2]
[390999993,1760278239182,-151.0,0.00021294,2]
[390999995,1760278239191,-151.0,0.00021294,2]
[390999996,1760278239200,-151.0,0.00021294,2]
[390999999,1760278239210,-152.37234461,0.00021294,2]
[391000001,1760278239220,-151.0,0.00021294,2]
[391000002,1760278239230,-151.0,0.00021294,2]
[391000004,1760278239240,-151.0,0.00021294,2]
[391000007,1760278239250,-284.41269729,0.00021294,2]
[391000008,1760278239259,-151.0,0.00021294,2]
[391000010,1760278239269,-151.19850957,0.00021294,2]
[391000012,1760278239278,-151.0,0.00021294,2]
[391000015,1760278239288,-152.7960608,0.00021294,2]
[391000017,1760278239297,-151.0,0.00021294,2]
[391000019,1760278239309,-152.41691668,0.00021294,2]
[391000034,1760278239439,-153.32465629,0.00021294,2]
[391000036,1760278239450,-500.0,0.00021294,2]
[391000038,1760278239460,-154.37356518,0.00021294,2]
[391000040,1760278239469,-151.0,0.00021294,2]
[391000042,1760278239479,-151.0,0.00021294,2]
[391000045,1760278239489,-500.0,0.00021297,2]
[391000047,1760278239499,-217.80904035,0.00021297,2]
[391000049,1760278239508,-11206.77,0.00021298,10]
[391000051,1760278239518,-402.2877588,0.00021298,10]
[391000053,1760278239527,-803.01,0.000213,2]
[391000055,1760278239537,-271.51,0.000213,2]
[391000058,1760278239545,-5000.0,0.000213,2]
[391000061,1760278239555,-1003.50789963,0.000213,2]
[391000063,1760278239564,-610.53381417,0.00021304,2]
[391000065,1760278239574,-500.0,0.00021304,2]
[391000067,1760278239584,-500.0,0.00021304,2]
[391000069,1760278239593,-331.11300746,0.00021304,2]
[391000071,1760278239602,-1000.0,0.00021305,2]
[391000073,1760278239611,-1000.0,0.00021305,2]
[391000075,1760278239621,-1000.0,0.00021305,2]
[391000077,1760278239630,-190.77124641,0.00021305,2]
[391000079,1760278239639,-1000.0,0.00021305,2]
[391000080,1760278239648,-1000.0,0.00021305,2]
[391000082,1760278239658,-162.85878165,0.00021305,2]
[391000085,1760278239667,-151.0,0.00021305,2]
[391000087,1760278239677,-151.0,0.00021305,2]
[391000089,1760278239687,-500.0,0.00021305,2]
[391000091,1760278239696,-18603.8837,0.00021305,2]
[391000093,1760278239706,-1000.0,0.00021305,2]
[391000095,1760278239716,-1000.0,0.00021305,2]
[391000097,1760278239726,-151.0,0.00021305,2]
[391000099,1760278239736,-151.0,0.00021305,2]
[391000101,1760278239745,-500.0,0.00021305,2]
[391000103,1760278239755,-1000.0,0.00021305,2]
[391000105,1760278239767,-1000.0,0.00021305,2]
[391000107,1760278239778,-151.0,0.00021305,2]
[391000109,1760278239787,-151.0,0.00021305,2]
[391000111,1760278239796,-483.74602766,0.00021305,2]
[391000113,1760278239805,-1000.0,0.00021305,2]
[391000115,1760278239815,-1000.0,0.00021305,2]
[391000117,1760278239825,-151.0,0.00021305,2]
[391000119,1760278239834,-151.0,0.00021305,2]
[391000121,1760278239846,-1000.0,0.00021305,2]
[391000123,1760278239856,-155.3830729,0.00021305,2]
[391000125,1760278239865,-153.26398906,0.00021305,2]
[391000127,1760278239874,-321.96213366,0.00021305,2]
[391000129,1760278239883,-1000.0,0.00021305,2]
[391000131,1760278239892,-1000.0,0.00021305,2]
[391000132,1760278239901,-1000.0,0.00021305,2]
[391000134,1760278239911,-1000.0,0.00021305,2]
[391000136,1760278239920,-250.0,0.00021305,2]
[391000138,1760278239930,-1000.0,0.00021305,2]
[391000140,1760278239939,-250.0,0.00021305,2]
[391000143,1760278239948,-1000.0,0.00021305,2]
[391000145,1760278239957,-163.1743703,0.00021305,2]
[391000147,1760278239967,-250.0,0.00021305,2]
[391000148,1760278239976,-1000.0,0.00021305,2]
[391000150,1760278239986,-252.06122447,0.00021305,2]
[391000152,1760278239995,-557.39742113,0.00021305,2]
[391000154,1760278240004,-151.0,0.00021305,2]
[391000156,1760278240013,-500.0,0.00021305,2]
[391000158,1760278240022,-211.61315389,0.00021305,2]
[391000160,1760278240032,-500.0,0.00021305,2]
[391000162,1760278240041,-500.0,0.00021305,2]
[391000165,1760278240051,-151.34351314,0.00021305,2]
[391000167,1760278240060,-500.0,0.00021305,2]
[391000169,1760278240069,-500.0,0.00021305,2]
[391000170,1760278240078,-500.0,0.00021305,2]
[391000172,1760278240087,-500.0,0.00021305,2]
[391000174,1760278240097,-500.0,0.00021305,2]
[391000176,1760278240106,-500.0,0.00021305,2]
[391000178,1760278240115,-500.0,0.00021305,2]
[391000180,1760278240124,-500.0,0.00021305,2]
[391000182,1760278240133,-500.0,0.00021305,2]
[391000184,1760278240142,-500.0,0.00021305,2]
[391000186,1760278240152,-500.0,0.00021305,2]
[391000188,1760278240161,-614.96583284,0.00021305,2]
[391000189,1760278240172,-500.0,0.00021305,2]
[391000191,1760278240183,-521.56339739,0.00021305,2]
[391000192,1760278240193,-2797.01,0.00021308,3]
[391000193,1760278240202,-1398.5,0.00021308,3]
[391000195,1760278240212,-349.63,0.00021308,3]
[391000197,1760278240221,-174.81,0.00021308,3]
[391000198,1760278240230,-524.46,0.00021308,3]
[391000199,1760278240240,-2201.63671003,0.00021334,2]
[391000201,1760278240249,-699.25,0.00021336,3]
[391000202,1760278240258,-5000.0,0.00021346,2]
[391000203,1760278240267,-502.24230485,0.00021348,2]
[391000204,1760278240276,-151.0,0.00021348,2]
[391000205,1760278240286,-151.0,0.00021348,2]
[391000206,1760278240295,-151.0,0.00021348,2]
[391000207,1760278240304,-151.0,0.00021348,2]
[391000208,1760278240314,-152.45679784,0.00021349,2]
[391000209,1760278240323,-152.9289752,0.00021349,2]
[391000210,1760278240333,-151.0,0.00021349,2]
[391000211,1760278240342,-151.49708694,0.00021349,2]
[391000212,1760278240351,-154.13175971,0.00021349,2]
[391000213,1760278240361,-500.0,0.00021349,2]
[391000214,1760278240370,-152.00857573,0.00021349,2]
[391000215,1760278240378,-151.0,0.00021349,2]
[391000216,1760278240388,-502.782686,0.000214,2]
[391000217,1760278240397,-297.9509383,0.000214,2]
[391000218,1760278240407,-189.7609727,0.000214,2]
[391000219,1760278240416,-588.537303,0.000214,2]
[391000220,1760278240425,-153.0,0.000214,2]
[391000221,1760278240435,-162.9132687,0.000214,2]
[391000222,1760278240444,-189.7609727,0.000214,2]
[391000223,1760278240453,-297.9509383,0.000214,2]
[391000224,1760278240463,-162.9132687,0.000214,2]
[391000225,1760278240472,-153.0,0.000214,2]
[391000226,1760278240481,-588.537303,0.000214,2]
[391000227,1760278240492,-189.7609727,0.000214,2]
[391000228,1760278240501,-297.9509383,0.000214,2]
[391000229,1760278240511,-162.9132687,0.000214,2]
[391000230,1760278240521,-392.005774,0.000214,2]
[391000231,1760278240530,-588.537303,0.000214,2]
[391000232,1760278240539,-153.0,0.000214,2]
[391000233,1760278240549,-162.9132687,0.000214,2]
[391000234,1760278240558,-189.7609727,0.000214,2]
[391000235,1760278240567,-297.9509383,0.000214,2]
[391000236,1760278240576,-1177.074606,0.000214,2]
[391000237,1760278240585,-153.0,0.000214,2]
[391000238,1760278240594,-392.005774,0.000214,2]
[391000239,1760278240604,-162.9132687,0.000214,2]
[391000240,1760278240613,-392.005774,0.000214,2]
[391000241,1760278240622,-558.1895204,0.000214,2]
[391000242,1760278240632,-588.537303,0.000214,2]
[391000243,1760278240641,-392.005774,0.000214,2]
[391000244,1760278240651,-166.0276807,0.000214,2]
[391000245,1760278240660,-392.005774,0.000214,2]
[391000246,1760278240669,-151.0,0.00021403,2]
[391000247,1760278240679,-151.0,0.00021403,2]
[391000248,1760278240688,-151.0,0.00021403,2]
[391000249,1760278240697,-151.0,0.00021403,2]
[391000250,1760278240707,-151.0,0.00021404,2]
[391000251,1760278240716,-153.46248783,0.00021404,2]
[391000252,1760278240725,-198.44898585,0.00021404,2]
[391000253,1760278240735,-300.0,0.00021419,20]
[391000254,1760278240744,-300.0,0.00021419,20]
[391000255,1760278240753,-300.0,0.00021419,20]
[391000256,1760278240762,-300.0,0.00021419,20]
[391000257,1760278240775,-300.0,0.00021419,20]
[391000258,1760278240784,-300.0,0.00021419,20]
[391000259,1760278240793,-300.0,0.00021419,20]
[391000260,1760278240803,-300.0,0.00021419,20]
[391000261,1760278240812,-300.0,0.00021419,20]
[391000262,1760278240821,-300.0,0.00021419,20]
[391000263,1760278240831,-300.0,0.00021419,20]
[391000264,1760278240842,-300.0,0.00021419,20]
[391000265,1760278240852,-300.0,0.00021419,20]
[391000266,1760278240861,-300.0,0.00021419,20]
[391000267,1760278240870,-300.0,0.00021419,20]
[391000268,1760278240880,-2238.56004962,0.00021438,5]
[391000269,1760278240889,-151.0,0.00021457,2]
[391000270,1760278240900,-151.0,0.00021457,2]
[391000271,1760278240909,-151.0,0.00021457,2]
[391000272,1760278240918,-151.0,0.00021457,2]
[391000273,1760278240927,-200.5652559,0.00021458,2]
[391000274,1760278240936,-5000.0,0.0002147,2]
[391000275,1760278240946,-151.0,0.000215,3]
[391000276,1760278240955,-201.44766508,0.00021512,2]
[391000277,1760278240965,-151.0,0.00021512,2]
[391000278,1760278240974,-151.0,0.00021512,2]
[391000279,1760278240983,-193.03174717,0.00021512,2]
[391000280,1760278240992,-4160.74699374,0.00021522,2]
[391000281,1760278241002,-379.2467022,0.00021534,2]
[391000282,1760278241011,-583.7169542,0.00021534,2]
[391000283,1760278241021,-864.0,0.00021535,2]
[391000284,1760278241035,-7513.0,0.00021556,2]
[391000285,1760278241046,-245.0,0.00021567,2]
[391000286,1760278241059,-201.17014505,0.00021567,2]
[391000287,1760278241069,-500.0,0.00021571,2]
[391000288,1760278241079,-151.0,0.000216,4]
[391000289,1760278241088,-303.45784265,0.000216,2]
[391000290,1760278241099,-402.8352287,0.00021671,2]
[391000291,1760278241109,-153.0,0.00021699,2]
[391000292,1760278241119,-153.0,0.00021699,2]
[391000293,1760278241129,-153.0,0.00021699,2]
[391000294,1760278241138,-153.0,0.00021699,2]
[391000295,1760278241149,-417.15472785,0.000217,7]
[391000296,1760278241160,-151.0,0.000217,4]
[391000297,1760278241170,-500.0,0.00021704,2]
[391000298,1760278241180,-7491.19001855,0.00021736,2]
[391000299,1760278241189,-5812.0,0.00021788,2]
[391000300,1760278241199,-151.0,0.000218,3]
[391000301,1760278241209,-734469.674023,0.00021807,2]
[391000302,1760278241448,-7583.07757319,0.00021,2]
[391000319,1760278246143,-4750.1106824,0.00021,2]
[391000320,1760278246152,-177.41767855,0.00021736,2]
[391000321,1760278246164,-11125.25102999,0.00021807,2]
[391000322,1760278246175,-18910.68697879,0.00021807,2]
[391000323,1760278246186,-48393.86556644,0.00021807,2]
[391000324,1760278246219,-406.95655896,0.00021807,2]
[391000325,1760278247161,-5208.97464092,0.00021807,2]
[391000326,1760278247172,-2042.02703384,0.00021807,2]
[391000327,1760278247403,5000.0,0.00021,2]
[391000329,1760278249513,0.01,0.0002098,2]
[391000330,1760278249537,1149.6335558,0.0002098,2]
[391000331,1760278272154,5000.0,0.00021,2]
[391000333,1760278294837,3850.3764442,0.00021,2]
[391000334,1760278300488,-1149.6235558,0.00021,2]
[391000336,1760278317432,5000.0,0.00021,2]
[391000337,1760278317947,227.5,0.000207,2]
[391000338,1760278340776,5000.0,0.00021,2]
[391000339,1760278352077,500.0,0.00019509,2]
[391000340,1760278363754,5000.0,0.00021,2]
[391000341,1760278384807,4612.76,0.00021,2]
[391000342,1760278509050,387.25,0.00021,2]
[391000343,1760278509073,1196.86,0.00021,2]
[391000345,1760278581912,5000.0,0.00021,2]
[391000346,1760278582380,1000.0,0.00020624,2]
[391000347,1760278605615,4000.01,0.00021,2]
[391000348,1760278605640,999.99,0.00021,2]
[391000349,1760278695130,453.86465756,0.00020895,6]
[391000353,1760278998743,500.0,0.00019509,2]
[391000355,1760279110029,-265.78188698,0.00021,2]
[391000356,1760279110063,-603.50575654,0.00021,2]
[391000357,1760279110100,-300.0,0.00021398,2]
[391000358,1760279110135,-473.37604115,0.00021399,2]
[391000359,1760279110166,-509.32751331,0.00021399,2]
[391000360,1760279110200,-500.0,0.00021399,2]
[391000361,1760279110233,-650.65191241,0.00021399,2]
[391000362,1760279110266,-500.0,0.00021399,2]
[391000363,1760279110298,-500.0,0.00021399,2]
[391000364,1760279110332,-500.0,0.00021399,2]
[391000365,1760279110364,-500.0,0.00021399,2]
[391000366,1760279110394,-500.0,0.00021399,2]
[391000367,1760279110425,-500.0,0.00021399,2]
[391000368,1760279110456,-500.0,0.00021399,2]
[391000369,1760279110489,-500.0,0.00021399,2]
[391000370,1760279110523,-500.0,0.00021399,2]
[391000371,1760279110558,-570.07938087,0.00021399,2]
[391000372,1760279110593,-500.0,0.00021399,2]
[391000373,1760279110626,-500.0,0.00021399,2]
[391000374,1760279110655,-500.0,0.00021399,2]
[391000375,1760279110684,-500.0,0.00021399,2]
[391000376,1760279110717,-500.0,0.00021399,2]
[391000377,1760279110752,-500.0,0.00021399,2]
[391000378,1760279110785,-500.0,0.00021399,2]
[391000379,1760279110818,-330.71235648,0.00021399,2]
[391000381,1760279116019,313.08327197,0.00020756,2]